{"text_format":"1","workbook":"xlsx","n_sheets":3,"sheets":["Sheet1","Sheet3","Sheet2"],"not_rendered":{"charts":0,"images":0,"macros":1,"external_links":0,"defined_names":0,"comments":0,"pivot_tables":1},"unopened":[],"bounds":{"document_bytes":16777216,"sheet_cells":100000,"rows_first":2000,"rows_last":500,"rows_between":2000,"halvings":0,"cell_chars":16384,"cell_head_chars":4096},"cells_cut":0,"cells_raw":0,"read":"whole","date_system":"1900"}

{"sheet":"Sheet1","index":0,"n_rows":163,"n_cols":37,"rows_kept":163,"cut":false,"hidden":false,"merged":[]}
[3]
[2022,null,null,{"$f":"TEXT(D3,\"[$-0809]ddd\")","v":"Tue"},{"$f":"TEXT(E3,\"[$-0809]ddd\")","v":"Wed"},"Thu","Sun","Mon","Tue","Wed","Thu","Sun","Mon","Tue","Wed","Thu","Sun","Mon","Tue","Wed","Thu","Sun","Mon","Tue","Wed","Thu"]
["الكود","اسم الطالب","الصف",{"$f":"IF(WORKDAY.INTL(DATE($A$2,$A$1,COLUMNS(A1))-1,COLUMN(A1),7,$AK$4:$AK$14)>EOMONTH(DATE($A$2,$A$1,COLUMNS(A1)),0),\"\",WORKDAY.INTL(DATE($A$2,$A$1,COLUMNS(A1))-1,COLUMN(A1),7,$AK$4:$AK$14))","v":"2022-03-01"},"2022-03-02","2022-03-03","2022-03-06","2022-03-07","2022-03-08","2022-03-09","2022-03-10","2022-03-13","2022-03-14","2022-03-15","2022-03-16","2022-03-17","2022-03-20","2022-03-21","2022-03-22","2022-03-23","2022-03-24","2022-03-27","2022-03-28","2022-03-29","2022-03-30","2022-03-31","عدد الغياب","عدد الحضور","عدد المعذورين","نسبة الغياب","نسبة الحضور",null,null,null,null,null,"الإجازات"]
[1,"احمد عبداللاه احمد يحيى عبدالاله","10\\1",null,null,null,null,null,null,null,null,null,null,null,null,null,null,null,null,null,null,null,null,null,null,null,{"$f":"COUNTIF(D4:Z4,\"غ\")","v":0},{"$f":"COUNTIF(D4:Z4,\"حاضر\")","v":0},{"$f":"COUNTIF(D4:Z4,\"غ بعذر\")","v":0},null,null,null,null,null,null,null,"2022-08-01"]
[2,"احمد محمود احمد عبدالسميع عثمان","10\\1",null,null,null,null,null,null,null,null,null,null,null,null,null,null,null,null,null,null,null,null,null,null,null,{"$f":"COUNTIF(D5:Z5,\"غ\")","v":0},{"$f":"COUNTIF(D5:Z5,\"حاضر\")","v":0},{"$f":"COUNTIF(D5:Z5,\"غ بعذر\")","v":0},null,null,null,null,null,null,null,"2022-08-02"]
[3,"جمال عبدالغفار كمال على","10\\1",null,null,null,null,null,null,null,null,null,null,null,null,null,null,null,null,null,null,null,null,null,null,null,0,0,0,null,null,null,null,null,null,null,"2022-08-03"]
[4,"حسن محمد العبود الصالح","10\\1",null,null,null,null,null,null,null,null,null,null,null,null,null,null,null,null,null,null,null,null,null,null,null,0,0,0,null,null,null,null,null,null,null,"2022-08-04"]
[5,"سيف سعيد احمد عبدالمجيد عبدالرحيم","10\\1",null,null,null,null,null,null,null,null,null,null,null,null,null,null,null,null,null,null,null,null,null,null,null,0,0,0,null,null,null,null,null,null,null,"2022-08-07"]
[6,"شعيب خالد شعيب جاب الله","10\\1",null,null,null,null,null,null,null,null,null,null,null,null,null,null,null,null,null,null,null,null,null,null,null,0,0,0,null,null,null,null,null,null,null,"2022-08-08"]
[7,"عادل سعيد فتحي مصطفى عوض  الله","10\\1",null,null,null,null,null,null,null,null,null,null,null,null,null,null,null,null,null,null,null,null,null,null,null,0,0,0,null,null,null,null,null,null,null,"2022-08-09"]
[8,"عامر محمد عمر عجيز","10\\1",null,null,null,null,null,null,null,null,null,null,null,null,null,null,null,null,null,null,null,null,null,null,null,0,0,0,null,null,null,null,null,null,null,"2022-08-10"]
[9,"عبدالرحمن خالد محمد سليمان الشيخ","10\\1",null,null,null,null,null,null,null,null,null,null,null,null,null,null,null,null,null,null,null,null,null,null,null,0,0,0,null,null,null,null,null,null,null,"2022-08-11"]
[10,"عبدالرحمن قارى محمد اقبال","10\\1",null,null,null,null,null,null,null,null,null,null,null,null,null,null,null,null,null,null,null,null,null,null,null,0,0,0,null,null,null,null,null,null,null,"2022-11-20"]
[11,"عبدالله فتحي سيد محمد جمعه","10\\1",null,null,null,null,null,null,null,null,null,null,null,null,null,null,null,null,null,null,null,null,null,null,null,0,0,0,null,null,null,null,null,null,null,"2022-11-21"]
[12,"عدنان محمد رضا كرار سليمان","10\\1",null,null,null,null,null,null,null,null,null,null,null,null,null,null,null,null,null,null,null,null,null,null,null,0,0,0,null,null,null,null,null,null,null,"2022-11-22"]
[13,"عمر عبدالباسط ابراهيم محمد","10\\1",null,null,null,null,null,null,null,null,null,null,null,null,null,null,null,null,null,null,null,null,null,null,null,0,0,0,null,null,null,null,null,null,null,"2022-11-23"]
[14,"مهنا احمد محمد سيف النعيمى","10\\1",null,null,null,null,null,null,null,null,null,null,null,null,null,null,null,null,null,null,null,null,null,null,null,0,0,0,null,null,null,null,null,null,null,"2022-11-24"]
[15,"على هصام حامد على الحبابى","10\\1",null,null,null,null,null,null,null,null,null,null,null,null,null,null,null,null,null,null,null,null,null,null,null,0,0,0,null,null,null,null,null,null,null,"2022-11-27"]
[16,"عمر هشام على بحيرى ابوالخير","10\\1",null,null,null,null,null,null,null,null,null,null,null,null,null,null,null,null,null,null,null,null,null,null,null,0,0,0,null,null,null,null,null,null,null,"2022-11-28"]
[17,"عمر مصطفى محمد عوه ","10\\1",null,null,null,null,null,null,null,null,null,null,null,null,null,null,null,null,null,null,null,null,null,null,null,0,0,0,null,null,null,null,null,null,null,"2022-11-29"]
[18,"مازن محمود السيد عبدالله عبدالوهاب","10\\1",null,null,null,null,null,null,null,null,null,null,null,null,null,null,null,null,null,null,null,null,null,null,null,0,0,0,null,null,null,null,null,null,null,"2022-11-30"]
[19,"عمر فؤاد اسماعيل ثابت","10\\1",null,null,null,null,null,null,null,null,null,null,null,null,null,null,null,null,null,null,null,null,null,null,null,0,0,0,null,null,null,null,null,null,null,"2022-12-01"]
[20,"فادي عدنان احمد عبدالجليل","10\\1",null,null,null,null,null,null,null,null,null,null,null,null,null,null,null,null,null,null,null,null,null,null,null,0,0,0,null,null,null,null,null,null,null,"2022-12-04"]
[21,"محمد عبدالله السيد بيومي حسن","10\\1",null,null,null,null,null,null,null,null,null,null,null,null,null,null,null,null,null,null,null,null,null,null,null,0,0,0,null,null,null,null,null,null,null,"2022-12-05"]
[22,"محمد عقيل عدنان سيد احمد","10\\1",null,null,null,null,null,null,null,null,null,null,null,null,null,null,null,null,null,null,null,null,null,null,null,0,0,0,null,null,null,null,null,null,null,"2022-12-06"]
[23,"محمد علي عطيت الله ابراهيم عبداللاه","10\\1",null,null,null,null,null,null,null,null,null,null,null,null,null,null,null,null,null,null,null,null,null,null,null,0,0,0,null,null,null,null,null,null,null,"2022-12-07"]
[24,"محمد عمر عبدالرحيم على","10\\1",null,null,null,null,null,null,null,null,null,null,null,null,null,null,null,null,null,null,null,null,null,null,null,0,0,0,null,null,null,null,null,null,null,"2022-12-08"]
[25,"محمد عمر فتحى عبدالتواب عبدالمقصود","10\\1",null,null,null,null,null,null,null,null,null,null,null,null,null,null,null,null,null,null,null,null,null,null,null,0,0,0,null,null,null,null,null,null,null,"2022-12-11"]
[26,"محمود حبيب الله","10\\1",null,null,null,null,null,null,null,null,null,null,null,null,null,null,null,null,null,null,null,null,null,null,null,0,0,0,null,null,null,null,null,null,null,"2022-12-12"]
[27,"محمود عادل عبدالمحسن محمد","10\\1",null,null,null,null,null,null,null,null,null,null,null,null,null,null,null,null,null,null,null,null,null,null,null,0,0,0,null,null,null,null,null,null,null,"2022-12-13"]
[28,"مؤمن شريف محمد التاج","10\\1",null,null,null,null,null,null,null,null,null,null,null,null,null,null,null,null,null,null,null,null,null,null,null,0,0,0,null,null,null,null,null,null,null,"2022-12-14"]
[29,"يوسف محمد سليمان موسى عامر","10\\1",null,null,null,null,null,null,null,null,null,null,null,null,null,null,null,null,null,null,null,null,null,null,null,0,0,0,null,null,null,null,null,null,null,"2022-12-15"]
[30,"خالد مصعب خضر عبدالله تايه","10\\1",null,null,null,null,null,null,null,null,null,null,null,null,null,null,null,null,null,null,null,null,null,null,null,0,0,0,null,null,null,null,null,null,null,"2022-12-18"]
[31,"احمد حسن احمد سليمان الهيل","10\\1",null,null,null,null,null,null,null,null,null,null,null,null,null,null,null,null,null,null,null,null,null,null,null,0,0,0,null,null,null,null,null,null,null,"2022-12-19"]
[32,"معتز احمد كامل على خوالده ","10\\1",null,null,null,null,null,null,null,null,null,null,null,null,null,null,null,null,null,null,null,null,null,null,null,0,0,0,null,null,null,null,null,null,null,"2022-12-20"]
[33,"محمد احمد محمود شناق","10\\1",null,null,null,null,null,null,null,null,null,null,null,null,null,null,null,null,null,null,null,null,null,null,null,0,0,0,null,null,null,null,null,null,null,"2022-12-21"]
[34,"أحمد اقبال ابواصبع","10\\2",null,null,null,null,null,null,null,null,null,null,null,null,null,null,null,null,null,null,null,null,null,null,null,0,0,0,null,null,null,null,null,null,null,"2022-12-22"]
[35,"احمد شريف ابراهيم الدسوقى عوض","10\\2",null,null,null,null,null,null,null,null,null,null,null,null,null,null,null,null,null,null,null,null,null,null,null,0,0,0,null,null,null,null,null,null,null,"2022-02-08"]
[36,"براء اشرف سعيد زكي السيد","10\\2",null,null,null,null,null,null,null,null,null,null,null,null,null,null,null,null,null,null,null,null,null,null,null,0,0,0,null,null,null,null,null,null,null,"2023-03-12"]
[37,"جوين عماد عبدالحليم داود","10\\2",null,null,null,null,null,null,null,null,null,null,null,null,null,null,null,null,null,null,null,null,null,null,null,0,0,0,null,null,null,null,null,null,null,"2023-03-13"]
[38,"حمد ناجى مسعد احمد الطيرى","10\\2",null,null,null,null,null,null,null,null,null,null,null,null,null,null,null,null,null,null,null,null,null,null,null,0,0,0,null,null,null,null,null,null,null,"2023-03-14"]
[39,"خالد ناصر محمد ناصر الدهيمى","10\\2",null,null,null,null,null,null,null,null,null,null,null,null,null,null,null,null,null,null,null,null,null,null,null,0,0,0,null,null,null,null,null,null,null,"2023-03-15"]
[40,"راشد حمد على البكرى اليافعى","10\\2",null,null,null,null,null,null,null,null,null,null,null,null,null,null,null,null,null,null,null,null,null,null,null,0,0,0,null,null,null,null,null,null,null,"2023-03-16"]
[41,"رامي سعد فراج فرج علي","10\\2",null,null,null,null,null,null,null,null,null,null,null,null,null,null,null,null,null,null,null,null,null,null,null,0,0,0]
[42,"زكي واءلئ شحده عطيه ابوعيده","10\\2",null,null,null,null,null,null,null,null,null,null,null,null,null,null,null,null,null,null,null,null,null,null,null,0,0,0]
[43,"زيد محمود احمد خشان","10\\2",null,null,null,null,null,null,null,null,null,null,null,null,null,null,null,null,null,null,null,null,null,null,null,0,0,0]
[44,"سلمان محمد اسلام ناصر احمد","10\\2",null,null,null,null,null,null,null,null,null,null,null,null,null,null,null,null,null,null,null,null,null,null,null,0,0,0]
[45,"عبدالرحمن جمال على صالح سيد","10\\2",null,null,null,null,null,null,null,null,null,null,null,null,null,null,null,null,null,null,null,null,null,null,null,0,0,0]
[46,"عبدالرحمن محمد محسن البكري","10\\2",null,null,null,null,null,null,null,null,null,null,null,null,null,null,null,null,null,null,null,null,null,null,null,0,0,0]
[47,"بريك سالم دغش الجربوعى المرى","10\\2",null,null,null,null,null,null,null,null,null,null,null,null,null,null,null,null,null,null,null,null,null,null,null,0,0,0]
[48,"سيف فهد موسى حسن على","10\\2",null,null,null,null,null,null,null,null,null,null,null,null,null,null,null,null,null,null,null,null,null,null,null,0,0,0]
[49,"فيصل محمد راشد جخدب الهميمى ","10\\2",null,null,null,null,null,null,null,null,null,null,null,null,null,null,null,null,null,null,null,null,null,null,null,0,0,0]
[50,"عبدالرحمن هيثم اديب ابودلو","10\\2",null,null,null,null,null,null,null,null,null,null,null,null,null,null,null,null,null,null,null,null,null,null,null,0,0,0]
[51,"عبدالرحيم محمد رشيد الديرشوى","10\\2",null,null,null,null,null,null,null,null,null,null,null,null,null,null,null,null,null,null,null,null,null,null,null,0,0,0]
[52,"عبدالعزيز عوض احمد محمد اليافعى","10\\2",null,null,null,null,null,null,null,null,null,null,null,null,null,null,null,null,null,null,null,null,null,null,null,0,0,0]
[53,"على عبدالحافظ على منصر منيف","10\\2",null,null,null,null,null,null,null,null,null,null,null,null,null,null,null,null,null,null,null,null,null,null,null,0,0,0]
[54,"قيس محمد داود ابراهيم ابوديه","10\\2",null,null,null,null,null,null,null,null,null,null,null,null,null,null,null,null,null,null,null,null,null,null,null,0,0,0]
[55,"لؤي ايهاب محمد احمد محمد","10\\2",null,null,null,null,null,null,null,null,null,null,null,null,null,null,null,null,null,null,null,null,null,null,null,0,0,0]
[56,"محمد على راشد محمد انديله","10\\2",null,null,null,null,null,null,null,null,null,null,null,null,null,null,null,null,null,null,null,null,null,null,null,0,0,0]
[57,"محمد محمود فاروق العبد","10\\2",null,null,null,null,null,null,null,null,null,null,null,null,null,null,null,null,null,null,null,null,null,null,null,0,0,0]
[58,"محمدخير حسين رغفان","10\\2",null,null,null,null,null,null,null,null,null,null,null,null,null,null,null,null,null,null,null,null,null,null,null,0,0,0]
[59,"وليد الامين عثمان","10\\2",null,null,null,null,null,null,null,null,null,null,null,null,null,null,null,null,null,null,null,null,null,null,null,0,0,0]
[60,"يزيد سامح حسنى محيسن","10\\2",null,null,null,null,null,null,null,null,null,null,null,null,null,null,null,null,null,null,null,null,null,null,null,0,0,0]
[61,"يوسف محمد عطيه عطيه حسن","10\\2",null,null,null,null,null,null,null,null,null,null,null,null,null,null,null,null,null,null,null,null,null,null,null,0,0,0]
[62,"على نائل محمد عبدالله الخالدى ","10\\2",null,null,null,null,null,null,null,null,null,null,null,null,null,null,null,null,null,null,null,null,null,null,null,0,0,0]
[63,"سالم محمد سالم البطى الكعبى","10\\2",null,null,null,null,null,null,null,null,null,null,null,null,null,null,null,null,null,null,null,null,null,null,null,0,0,0]
[64,"امين بن المنذر بن عثمان","10\\2",null,null,null,null,null,null,null,null,null,null,null,null,null,null,null,null,null,null,null,null,null,null,null,0,0,0]
[65,"عبدالرحمن اشرف فتحى سالم نصار","10\\2",null,null,null,null,null,null,null,null,null,null,null,null,null,null,null,null,null,null,null,null,null,null,null,0,0,0]
[66,"احمد اسامه جميل ابوالعلا","10\\2",null,null,null,null,null,null,null,null,null,null,null,null,null,null,null,null,null,null,null,null,null,null,null,{"$f":"COUNTIF(D69:Z69,\"غ\")","v":0},{"$f":"COUNTIF(D69:Z69,\"حاضر\")","v":0},{"$f":"COUNTIF(D69:Z69,\"غ بعذر\")","v":0}]
[67,"بخيت مبخوت سالم سعيد خوار","10\\3",null,null,null,null,null,null,null,null,null,null,null,null,null,null,null,null,null,null,null,null,null,null,null,0,0,0]
[68,"جاسم عبدالله خالد عبدالله الكثيرى","10\\3",null,null,null,null,null,null,null,null,null,null,null,null,null,null,null,null,null,null,null,null,null,null,null,0,0,0]
[69,"حمد راشد حمد ال شابل المرى","10\\3",null,null,null,null,null,null,null,null,null,null,null,null,null,null,null,null,null,null,null,null,null,null,null,0,0,0]
[70,"راشد خالد على محمد النديله","10\\3",null,null,null,null,null,null,null,null,null,null,null,null,null,null,null,null,null,null,null,null,null,null,null,0,0,0]
[71,"سعيد حسين ناصر ال شافعه المرى","10\\3",null,null,null,null,null,null,null,null,null,null,null,null,null,null,null,null,null,null,null,null,null,null,null,0,0,0]
[72,"شاهين علي","10\\3",null,null,null,null,null,null,null,null,null,null,null,null,null,null,null,null,null,null,null,null,null,null,null,0,0,0]
[73,"امان رشيد خان جول جنان","10\\3",null,null,null,null,null,null,null,null,null,null,null,null,null,null,null,null,null,null,null,null,null,null,null,0,0,0]
[74,"عبدالله سعيد عبدالله آل نابت المرى","10\\3",null,null,null,null,null,null,null,null,null,null,null,null,null,null,null,null,null,null,null,null,null,null,null,0,0,0]
[75,"مسفر سعد محمد ذفال الحبابى","10\\3",null,null,null,null,null,null,null,null,null,null,null,null,null,null,null,null,null,null,null,null,null,null,null,0,0,0]
[76,"احمد محمد احمد قنبر بلال","10\\3",null,null,null,null,null,null,null,null,null,null,null,null,null,null,null,null,null,null,null,null,null,null,null,0,0,0]
[77,"ايسر جهاد عبدالفتاح كراز","10\\3",null,null,null,null,null,null,null,null,null,null,null,null,null,null,null,null,null,null,null,null,null,null,null,0,0,0]
[78,"سالم على محمد سالم خوار","10\\3",null,null,null,null,null,null,null,null,null,null,null,null,null,null,null,null,null,null,null,null,null,null,null,0,0,0]
[79,"محمدزين عبدالحميد المبارك على","10\\3",null,null,null,null,null,null,null,null,null,null,null,null,null,null,null,null,null,null,null,null,null,null,null,0,0,0]
[80,"عبدالرحمن فرج محمد المشعلى القحطانى","10\\3",null,null,null,null,null,null,null,null,null,null,null,null,null,null,null,null,null,null,null,null,null,null,null,0,0,0]
[81," احمد حافظ محمد ابوالكلام ","10\\3",null,null,null,null,null,null,null,null,null,null,null,null,null,null,null,null,null,null,null,null,null,null,null,0,0,0]
[82,"عبدالرشيد حسين عبدي","10\\3",null,null,null,null,null,null,null,null,null,null,null,null,null,null,null,null,null,null,null,null,null,null,null,0,0,0]
[83,"عبدالله سعيد بخيت سعيد خوار","10\\3",null,null,null,null,null,null,null,null,null,null,null,null,null,null,null,null,null,null,null,null,null,null,null,0,0,0]
[84,"عبدالله مبارك سالم بطى الكعبى","10\\3",null,null,null,null,null,null,null,null,null,null,null,null,null,null,null,null,null,null,null,null,null,null,null,0,0,0]
[85,"على عجيم على عجيم الحبابى","10\\3",null,null,null,null,null,null,null,null,null,null,null,null,null,null,null,null,null,null,null,null,null,null,null,0,0,0]
[86,"على فهد على احمد محمد","10\\3",null,null,null,null,null,null,null,null,null,null,null,null,null,null,null,null,null,null,null,null,null,null,null,0,0,0]
[87,"عمر عبيدالله روح الامين مريضا","10\\3",null,null,null,null,null,null,null,null,null,null,null,null,null,null,null,null,null,null,null,null,null,null,null,0,0,0]
[88,"محمد عبدالله عبدالله ابراهيم الخليفى","10\\3",null,null,null,null,null,null,null,null,null,null,null,null,null,null,null,null,null,null,null,null,null,null,null,0,0,0]
[89,"محمد عبدالله محمد جاسم السويدى","10\\3",null,null,null,null,null,null,null,null,null,null,null,null,null,null,null,null,null,null,null,null,null,null,null,0,0,0]
[90,"ناصر جهان بخش مرادك درزاده","10\\3",null,null,null,null,null,null,null,null,null,null,null,null,null,null,null,null,null,null,null,null,null,null,null,0,0,0]
[91,"ناصر محمد خالد احمد الغانم","10\\3",null,null,null,null,null,null,null,null,null,null,null,null,null,null,null,null,null,null,null,null,null,null,null,0,0,0]
[92,"يوسف صالح على عبدالعزيز على","10\\3",null,null,null,null,null,null,null,null,null,null,null,null,null,null,null,null,null,null,null,null,null,null,null,0,0,0]
[93,"جابر سعد سالم النابت المرى","10\\3",null,null,null,null,null,null,null,null,null,null,null,null,null,null,null,null,null,null,null,null,null,null,null,0,0,0]
[94,"خالد حسين بلوج زنى","10\\3",null,null,null,null,null,null,null,null,null,null,null,null,null,null,null,null,null,null,null,null,null,null,null,0,0,0]
[95,"سالم سعد سالم النابت المرى","10\\3",null,null,null,null,null,null,null,null,null,null,null,null,null,null,null,null,null,null,null,null,null,null,null,0,0,0]
[96,"محمود اسعد الحاج الخلف","10\\3",null,null,null,null,null,null,null,null,null,null,null,null,null,null,null,null,null,null,null,null,null,null,null,0,0,0]
[97,"خلف فرحان عقيل الرويلى العنزى","10\\3",null,null,null,null,null,null,null,null,null,null,null,null,null,null,null,null,null,null,null,null,null,null,null,0,0,0]
[98,"احمد رائد سليمان المومني","10\\4",null,null,null,null,null,null,null,null,null,null,null,null,null,null,null,null,null,null,null,null,null,null,null,0,0,0]
[99,"أحمد نافذ حماده حموده","10\\4",null,null,null,null,null,null,null,null,null,null,null,null,null,null,null,null,null,null,null,null,null,null,null,0,0,0]
[100,"أحمد يوسف خالد يوسف شراب","10\\4",null,null,null,null,null,null,null,null,null,null,null,null,null,null,null,null,null,null,null,null,null,null,null,0,0,0]
[101,"تميم سالم راشد الصعاق المرى","10\\4",null,null,null,null,null,null,null,null,null,null,null,null,null,null,null,null,null,null,null,null,null,null,null,0,0,0]
[102,"جابر سعيد جابر سالم اليربوعى","10\\4",null,null,null,null,null,null,null,null,null,null,null,null,null,null,null,null,null,null,null,null,null,null,null,0,0,0]
[103,"جاسم ناصر جاسم محمد المفتاح","10\\4",null,null,null,null,null,null,null,null,null,null,null,null,null,null,null,null,null,null,null,null,null,null,null,0,0,0]
[104,"حمد محمد بخيت تويم المرى","10\\4",null,null,null,null,null,null,null,null,null,null,null,null,null,null,null,null,null,null,null,null,null,null,null,0,0,0]
[105,"خميس محمد سيف خميس الريامي","10\\4",null,null,null,null,null,null,null,null,null,null,null,null,null,null,null,null,null,null,null,null,null,null,null,0,0,0]
[106,"راشد حمد راشد سالم خادم","10\\4",null,null,null,null,null,null,null,null,null,null,null,null,null,null,null,null,null,null,null,null,null,null,null,0,0,0]
[107,"شعيب عبدي قرني قلديد","10\\4",null,null,null,null,null,null,null,null,null,null,null,null,null,null,null,null,null,null,null,null,null,null,null,0,0,0]
[108,"عابدين حافظ عابدين موسى","10\\4",null,null,null,null,null,null,null,null,null,null,null,null,null,null,null,null,null,null,null,null,null,null,null,0,0,0]
[109,"عبدالرحمن صبرى عثمان محسن اليهرى","10\\4",null,null,null,null,null,null,null,null,null,null,null,null,null,null,null,null,null,null,null,null,null,null,null,0,0,0]
[110,"عبدالله ضيف الله برمان الدوسري","10\\4",null,null,null,null,null,null,null,null,null,null,null,null,null,null,null,null,null,null,null,null,null,null,null,0,0,0]
[111,"عبدالله سالم محمد سالم خوار","10\\4",null,null,null,null,null,null,null,null,null,null,null,null,null,null,null,null,null,null,null,null,null,null,null,0,0,0]
[112,"محمد عبدالعزيز عبدالكريم يحى يعقوب","10\\4",null,null,null,null,null,null,null,null,null,null,null,null,null,null,null,null,null,null,null,null,null,null,null,0,0,0]
[113,"محمد يوسف محمد ابراهيم محمد","10\\4",null,null,null,null,null,null,null,null,null,null,null,null,null,null,null,null,null,null,null,null,null,null,null,0,0,0]
[114,"عدي فريد احمد حسين","10\\4",null,null,null,null,null,null,null,null,null,null,null,null,null,null,null,null,null,null,null,null,null,null,null,0,0,0]
[115,"عزيز خالد سالم ابو شنار","10\\4",null,null,null,null,null,null,null,null,null,null,null,null,null,null,null,null,null,null,null,null,null,null,null,0,0,0]
[116,"على محمد عويض الصقور المرى","10\\4",null,null,null,null,null,null,null,null,null,null,null,null,null,null,null,null,null,null,null,null,null,null,null,0,0,0]
[117,"علي عاطف سالم ابراهيم سالم","10\\4",null,null,null,null,null,null,null,null,null,null,null,null,null,null,null,null,null,null,null,null,null,null,null,0,0,0]
[118,"علي محمد عبدالله احمد شمس","10\\4",null,null,null,null,null,null,null,null,null,null,null,null,null,null,null,null,null,null,null,null,null,null,null,0,0,0]
[119,"عمر محمد محمود ابوزاهر","10\\4",null,null,null,null,null,null,null,null,null,null,null,null,null,null,null,null,null,null,null,null,null,null,null,0,0,0]
[120,"محمد حافظ محمد ابوالكلام كبيرالدين","10\\4",null,null,null,null,null,null,null,null,null,null,null,null,null,null,null,null,null,null,null,null,null,null,null,0,0,0]
[121,"محمد حسن حسن ناجى الجدره","10\\4",null,null,null,null,null,null,null,null,null,null,null,null,null,null,null,null,null,null,null,null,null,null,null,0,0,0]
[122,"محمد حمد محمد صالح الصرامى","10\\4",null,null,null,null,null,null,null,null,null,null,null,null,null,null,null,null,null,null,null,null,null,null,null,0,0,0]
[123,"محمد هشام حامد على ابوخطيطه","10\\4",null,null,null,null,null,null,null,null,null,null,null,null,null,null,null,null,null,null,null,null,null,null,null,0,0,0]
[124,"جاسم محمود محمد عبداللهي","10\\4",null,null,null,null,null,null,null,null,null,null,null,null,null,null,null,null,null,null,null,null,null,null,null,0,0,0]
[125," خالد سعيد محمد البريكان المرى ","10\\4",null,null,null,null,null,null,null,null,null,null,null,null,null,null,null,null,null,null,null,null,null,null,null,0,0,0]
[126,"سليمان حسن علي سليمان موسى","10\\4",null,null,null,null,null,null,null,null,null,null,null,null,null,null,null,null,null,null,null,null,null,null,null,0,0,0]
[127,"محمد يونس محمد زحمت كش","10\\4",null,null,null,null,null,null,null,null,null,null,null,null,null,null,null,null,null,null,null,null,null,null,null,0,0,0]
[128,"فهد سويد سلطان محمد الخوار","10\\4",null,null,null,null,null,null,null,null,null,null,null,null,null,null,null,null,null,null,null,null,null,null,null,0,0,0]
[129,"محمد عبد الله بخيت المهيري","10\\4",null,null,null,null,null,null,null,null,null,null,null,null,null,null,null,null,null,null,null,null,null,null,null,0,0,0]
[130,"محمد جابر محمد الصعاق المرى","10\\4",null,null,null,null,null,null,null,null,null,null,null,null,null,null,null,null,null,null,null,null,null,null,null,{"$f":"COUNTIF(D133:Z133,\"غ\")","v":0},{"$f":"COUNTIF(D133:Z133,\"حاضر\")","v":0},{"$f":"COUNTIF(D133:Z133,\"غ بعذر\")","v":0}]
[131,"بدر ناصر جابر سهل المرى","10\\5",null,null,null,null,null,null,null,null,null,null,null,null,null,null,null,null,null,null,null,null,null,null,null,0,0,0]
[132,"حسن محمود ابراهيم علي البنا","10\\5",null,null,null,null,null,null,null,null,null,null,null,null,null,null,null,null,null,null,null,null,null,null,null,0,0,0]
[133,"حمد سعيد سويلم سعد الخوار","10\\5",null,null,null,null,null,null,null,null,null,null,null,null,null,null,null,null,null,null,null,null,null,null,null,0,0,0]
[134,"حمد مبارك مفتاح فرج العبدالله","10\\5",null,null,null,null,null,null,null,null,null,null,null,null,null,null,null,null,null,null,null,null,null,null,null,0,0,0]
[135,"خالد عزيز حسن عبدربه حسن","10\\5",null,null,null,null,null,null,null,null,null,null,null,null,null,null,null,null,null,null,null,null,null,null,null,0,0,0]
[136,"دغش بريك دغش الجربوعى المرى","10\\5",null,null,null,null,null,null,null,null,null,null,null,null,null,null,null,null,null,null,null,null,null,null,null,0,0,0]
[137,"راشد شريف خان عيسى خان","10\\5",null,null,null,null,null,null,null,null,null,null,null,null,null,null,null,null,null,null,null,null,null,null,null,0,0,0]
[138,"زياد مصطفى كامل محمد ابوالبها","10\\5",null,null,null,null,null,null,null,null,null,null,null,null,null,null,null,null,null,null,null,null,null,null,null,0,0,0]
[139,"سعد حمد سعد البويصم المرى","10\\5",null,null,null,null,null,null,null,null,null,null,null,null,null,null,null,null,null,null,null,null,null,null,null,0,0,0]
[140,"سعيد محمد سالم عمار خوار","10\\5",null,null,null,null,null,null,null,null,null,null,null,null,null,null,null,null,null,null,null,null,null,null,null,0,0,0]
[141,"صلاح عارف احمد عبده جمن","10\\5",null,null,null,null,null,null,null,null,null,null,null,null,null,null,null,null,null,null,null,null,null,null,null,0,0,0]
[142,"سالم محمد راشد طفله الفهيده","10\\5",null,null,null,null,null,null,null,null,null,null,null,null,null,null,null,null,null,null,null,null,null,null,null,0,0,0]
[143,"غانم حمد صالح سعيد القريصى","10\\5",null,null,null,null,null,null,null,null,null,null,null,null,null,null,null,null,null,null,null,null,null,null,null,0,0,0]
[144,"على حسن مبخوت سعيد الراشدى","10\\5",null,null,null,null,null,null,null,null,null,null,null,null,null,null,null,null,null,null,null,null,null,null,null,0,0,0]
[145,"فهد سعد سعيد بخيت الخوار","10\\5",null,null,null,null,null,null,null,null,null,null,null,null,null,null,null,null,null,null,null,null,null,null,null,0,0,0]
[146,"عبدالله عبدالرحمن","10\\5",null,null,null,null,null,null,null,null,null,null,null,null,null,null,null,null,null,null,null,null,null,null,null,0,0,0]
[147,"عبدالله فهد عبدالله عبدالعزيز الرميحى","10\\5",null,null,null,null,null,null,null,null,null,null,null,null,null,null,null,null,null,null,null,null,null,null,null,0,0,0]
[148,"عبدالله فؤاد حازم شريف","10\\5",null,null,null,null,null,null,null,null,null,null,null,null,null,null,null,null,null,null,null,null,null,null,null,0,0,0]
[149,"عبدالمحسن عادل عبدالمحسن محمد الدهنيم","10\\5",null,null,null,null,null,null,null,null,null,null,null,null,null,null,null,null,null,null,null,null,null,null,null,0,0,0]
[150,"على سالم ظافر ال حثيث الاحبابى","10\\5",null,null,null,null,null,null,null,null,null,null,null,null,null,null,null,null,null,null,null,null,null,null,null,0,0,0]
[151,"قصي محمد داود ابراهيم ابوديه","10\\5",null,null,null,null,null,null,null,null,null,null,null,null,null,null,null,null,null,null,null,null,null,null,null,0,0,0]
[152,"محمد امين بن عادل قنوني","10\\5",null,null,null,null,null,null,null,null,null,null,null,null,null,null,null,null,null,null,null,null,null,null,null,0,0,0]
[153,"محمد طارق الحاج","10\\5",null,null,null,null,null,null,null,null,null,null,null,null,null,null,null,null,null,null,null,null,null,null,null,0,0,0]
[154,"محمد عبدالله شيخ محمد","10\\5",null,null,null,null,null,null,null,null,null,null,null,null,null,null,null,null,null,null,null,null,null,null,null,0,0,0]
[155,"محمد محسن محمد دخيل اليربوعى","10\\5",null,null,null,null,null,null,null,null,null,null,null,null,null,null,null,null,null,null,null,null,null,null,null,0,0,0]
[156,"مصطفى اسامه محمد زهدي سيد","10\\5",null,null,null,null,null,null,null,null,null,null,null,null,null,null,null,null,null,null,null,null,null,null,null,0,0,0]
[157,"مهند عمر سمير كلباني","10\\5",null,null,null,null,null,null,null,null,null,null,null,null,null,null,null,null,null,null,null,null,null,null,null,0,0,0]
[158,"راشد حمد ناصر المري","10\\5",null,null,null,null,null,null,null,null,null,null,null,null,null,null,null,null,null,null,null,null,null,null,null,0,0,0]
[159,"نصر على نصر على النصر","10\\5",null,null,null,null,null,null,null,null,null,null,null,null,null,null,null,null,null,null,null,null,null,null,null,0,0,0]
[160,"عبدالعزيز نايف عبدالله نايف","10\\5",null,null,null,null,null,null,null,null,null,null,null,null,null,null,null,null,null,null,null,null,null,null,null,0,0,0]

{"sheet":"Sheet3","index":1,"n_rows":12,"n_cols":4,"rows_kept":12,"cut":false,"hidden":false,"merged":[]}
[]
[]
[" ","نوع الإجازة"]
["التاريخ","غائب"," ","المجموع"]
["13/03/2022",1,null,1]
["31/03/2022",2,null,2]
["2022-01-03",1,null,1]
["2022-03-03",2,null,2]
["2022-07-03",1,null,1]
["2022-10-03",1,null,1]
["(blank)"]
["المجموع",8,null,8]

{"sheet":"Sheet2","index":2,"n_rows":9,"n_cols":5,"rows_kept":9,"cut":false,"hidden":false,"merged":[]}
["الكود","الاسم","الصف","التاريخ","نوع الإجازة"]
[5,"سيف سعيد احمد عبدالمجيد عبدالرحيم","10\\1","2022-07-03","غائب"]
[9,"عبدالرحمن خالد محمد سليمان الشيخ","10\\1","2022-10-03","غائب"]
[13,"عمر عبدالباسط ابراهيم محمد","10\\1","13/03/2022","غائب"]
[153,"محمد طارق الحاج","10\\5","2022-01-03","غائب"]
[155,"محمد محسن محمد دخيل اليربوعى","10\\5","31/03/2022","غائب"]
[160,"عبدالعزيز نايف عبدالله نايف","10\\5","31/03/2022","غائب"]
[1,"احمد عبداللاه احمد يحيى عبدالاله","10\\1","2022-03-03","غائب"]
[1,"احمد عبداللاه احمد يحيى عبدالاله","10\\1","2022-03-03","غائب"]